[Event "Titled Tuesday Blitz March 28 Early 2023"]
[White "Bruedigam, Martin"]
[Black "drdaro"]
[WhiteFideId "24608033"]
[WhiteElo "2331"]
[BlackElo "2404"]
[Result "1-0"]
[Round "07"]
[TimeControl "180+2"]
[Date "2023.03.28"]
[WhiteClock "0:00:29"]
[BlackClock "0:00:38"]

1. d4 {[%clk 0:00:56]}  g6 {[%clk 0:02:54]} 2. c4 {[%clk 0:00:55]}  Bg7 {[%clk 0:02:54]} 3. Nc3 {[%clk 0:00:55]}  c5 {[%clk 0:02:55]} 4. d5 {[%clk 0:00:55]}  e6 {[%clk 0:02:55]} 5. e4 {[%clk 0:00:53]}  d6 {[%clk 0:02:55]} 6. Nf3 {[%clk 0:00:52]}  e5 {[%clk 0:02:55]} 7. Bd3 {[%clk 0:00:51]}  Ne7 {[%clk 0:02:56]} 8. Nd2 {[%clk 0:00:49]}  O-O {[%clk 0:02:57]} 9. Nf1 {[%clk 0:00:49]}  a6 {[%clk 0:02:57]} 10. f3 {[%clk 0:00:49]}  f5 {[%clk 0:02:57]} 11. Be3 {[%clk 0:00:49]}  Nd7 {[%clk 0:02:55]} 12. Qd2 {[%clk 0:00:49]}  Nf6 {[%clk 0:02:54]} 13. O-O-O {[%clk 0:00:46]}  f4 {[%clk 0:02:55]} 14. Bf2 {[%clk 0:00:46]}  Bd7 {[%clk 0:02:51]} 15. Qe2 {[%clk 0:00:45]}  Qa5 {[%clk 0:02:40]} 16. Nd2 {[%clk 0:00:46]}  Rfb8 {[%clk 0:02:34]} 17. Nb3 {[%clk 0:00:45]}  Qc7 {[%clk 0:02:34]} 18. Kb1 {[%clk 0:00:42]}  b5 {[%clk 0:02:34]} 19. cxb5 {[%clk 0:00:43]}  axb5 {[%clk 0:02:35]} 20. Nxb5 {[%clk 0:00:41]}  Bxb5 {[%clk 0:02:31]} 21. Bxb5 {[%clk 0:00:41]}  Qa7 {[%clk 0:02:29]} 22. a3 {[%clk 0:00:39]}  Rb6 {[%clk 0:02:18]} 23. Ka2 {[%clk 0:00:38]}  Rab8 {[%clk 0:02:18]} 24. Bc4 {[%clk 0:00:38]}  Qb7 {[%clk 0:02:18]} 25. Qc2 {[%clk 0:00:38]}  Nc8 {[%clk 0:02:05]} 26. Be1 {[%clk 0:00:38]}  Na7 {[%clk 0:02:04]} 27. Ba5 {[%clk 0:00:38]}  Rxb3 {[%clk 0:01:54]} 28. Qxb3 {[%clk 0:00:37]}  Qc8 {[%clk 0:01:52]} 29. Qa4 {[%clk 0:00:36]}  Nd7 {[%clk 0:01:42]} 30. Rd3 {[%clk 0:00:37]}  Ra8 {[%clk 0:01:38]} 31. Rb3 {[%clk 0:00:35]}  Bf6 {[%clk 0:01:25]} 32. Bb6 {[%clk 0:00:34]}  Nxb6 {[%clk 0:01:18]} 33. Rxb6 {[%clk 0:00:35]}  Bd8 {[%clk 0:00:59]} 34. Ra6 {[%clk 0:00:36]}  Qb7 {[%clk 0:00:59]} 35. b3 {[%clk 0:00:32]}  Bb6 {[%clk 0:00:57]} 36. Rb1 {[%clk 0:00:30]}  Rb8 {[%clk 0:00:56]} 37. Rb2 {[%clk 0:00:29]}  Nc8 {[%clk 0:00:56]} 38. Qc6 {[%clk 0:00:28]}  Qe7 {[%clk 0:00:44]} 39. Ra8 {[%clk 0:00:28]}  Rxa8 {[%clk 0:00:40]} 40. Qxa8 {[%clk 0:00:29]}  Qc7 {[%clk 0:00:38]} 41. Ba6 {[%clk 0:00:29]} 1-0


[Site "https://www.chess.com"]

[Event "Titled Tuesday Blitz March 28 Early 2023"]
[White "Vallejo Diaz, Javier"]
[Black "Lorenzo De La Riva, Lazaro"]
[WhiteFideId "2256398"]
[BlackFideId "2268809"]
[WhiteElo "2498"]
[BlackElo "2294"]
[Result "1-0"]
[Round "07"]
[TimeControl "180+2"]
[Date "2023.03.28"]
[WhiteClock "0:00:51"]
[BlackClock "0:00:18"]

1. e4 {[%clk 0:03:00]}  c6 {[%clk 0:02:15]} 2. d4 {[%clk 0:02:58]}  d5 {[%clk 0:02:13]} 3. Nd2 {[%clk 0:02:59]}  dxe4 {[%clk 0:02:11]} 4. Nxe4 {[%clk 0:03:00]}  Nd7 {[%clk 0:02:11]} 5. Nf3 {[%clk 0:02:59]}  Ngf6 {[%clk 0:02:11]} 6. Nxf6+ {[%clk 0:02:59]}  Nxf6 {[%clk 0:02:10]} 7. Ne5 {[%clk 0:02:59]}  Be6 {[%clk 0:02:03]} 8. Be2 {[%clk 0:02:53]}  g6 {[%clk 0:02:02]} 9. O-O {[%clk 0:02:47]}  Bg7 {[%clk 0:02:02]} 10. c4 {[%clk 0:02:47]}  O-O {[%clk 0:02:02]} 11. Be3 {[%clk 0:02:47]}  Qa5 {[%clk 0:01:59]} 12. a3 {[%clk 0:02:41]}  Rfd8 {[%clk 0:01:50]} 13. b4 {[%clk 0:02:40]}  Qc7 {[%clk 0:01:49]} 14. Qc2 {[%clk 0:02:26]}  Nd7 {[%clk 0:01:48]} 15. f4 {[%clk 0:02:22]}  Nxe5 {[%clk 0:01:47]} 16. fxe5 {[%clk 0:02:21]}  f6 {[%clk 0:01:45]} 17. exf6 {[%clk 0:02:15]}  Bxf6 {[%clk 0:01:45]} 18. Rad1 {[%clk 0:02:15]}  a5 {[%clk 0:01:44]} 19. Bf3 {[%clk 0:01:48]}  axb4 {[%clk 0:01:43]} 20. axb4 {[%clk 0:01:48]}  Ra3 {[%clk 0:01:42]} 21. Rfe1 {[%clk 0:01:47]}  Rxe3 {[%clk 0:01:41]} 22. Rxe3 {[%clk 0:01:45]}  Bf5 {[%clk 0:01:36]} 23. Qc3 {[%clk 0:01:42]}  Qf4 {[%clk 0:01:35]} 24. g3 {[%clk 0:01:30]}  Qg5 {[%clk 0:01:22]} 25. Kg2 {[%clk 0:01:15]}  Bg7 {[%clk 0:01:00]} 26. Qe1 {[%clk 0:01:07]}  Bf6 {[%clk 0:00:55]} 27. d5 {[%clk 0:01:06]}  Bc2 {[%clk 0:00:44]} 28. Rd2 {[%clk 0:01:00]}  Ba4 {[%clk 0:00:22]} 29. dxc6 {[%clk 0:00:59]}  Rxd2+ {[%clk 0:00:22]} 30. Qxd2 {[%clk 0:00:59]}  bxc6 {[%clk 0:00:22]} 31. Qd8+ {[%clk 0:00:54]}  Kg7 {[%clk 0:00:21]} 32. Ra3 {[%clk 0:00:55]}  Bc2 {[%clk 0:00:20]} 33. Ra8 {[%clk 0:00:53]}  Qe3 {[%clk 0:00:18]} 34. Qf8# {[%clk 0:00:51]} 1-0


[Site "https://www.chess.com"]

[Event "Titled Tuesday Blitz March 28 Early 2023"]
[White "Alahakoon, Isuru"]
[Black "Golubev, Mikhail"]
[WhiteFideId "9900993"]
[BlackFideId "14100983"]
[WhiteElo "1995"]
[BlackElo "2374"]
[Result "0-1"]
[Round "07"]
[TimeControl "180+2"]
[Date "2023.03.28"]
[WhiteClock "0:00:38"]
[BlackClock "0:00:02"]

1. Nf3 {[%clk 0:03:00]}  d6 {[%clk 0:02:56]} 2. d4 {[%clk 0:03:00]}  Nf6 {[%clk 0:02:55]} 3. Nc3 {[%clk 0:03:00]}  Nbd7 {[%clk 0:02:54]} 4. e4 {[%clk 0:03:00]}  e5 {[%clk 0:02:54]} 5. Bc4 {[%clk 0:02:59]}  Be7 {[%clk 0:02:54]} 6. a4 {[%clk 0:03:00]}  O-O {[%clk 0:02:53]} 7. a5 {[%clk 0:02:59]}  c6 {[%clk 0:02:38]} 8. O-O {[%clk 0:02:58]}  Qc7 {[%clk 0:02:30]} 9. h3 {[%clk 0:02:57]}  Rb8 {[%clk 0:02:28]} 10. Be3 {[%clk 0:02:56]}  b5 {[%clk 0:02:25]} 11. axb6 {[%clk 0:02:56]}  axb6 {[%clk 0:02:23]} 12. Bd3 {[%clk 0:02:31]}  b5 {[%clk 0:02:13]} 13. Ne2 {[%clk 0:02:31]}  c5 {[%clk 0:01:58]} 14. c3 {[%clk 0:02:28]}  c4 {[%clk 0:01:39]} 15. Bc2 {[%clk 0:02:25]}  b4 {[%clk 0:01:25]} 16. Ng3 {[%clk 0:02:24]}  b3 {[%clk 0:01:17]} 17. Nf5 {[%clk 0:02:23]}  Re8 {[%clk 0:00:55]} 18. Nxe7+ {[%clk 0:02:10]}  Rxe7 {[%clk 0:00:55]} 19. Bb1 {[%clk 0:02:09]}  exd4 {[%clk 0:00:45]} 20. Nxd4 {[%clk 0:02:05]}  Nc5 {[%clk 0:00:41]} 21. Bg5 {[%clk 0:01:58]}  Ncxe4 {[%clk 0:00:27]} 22. Bxe4 {[%clk 0:01:54]}  Rxe4 {[%clk 0:00:27]} 23. Bxf6 {[%clk 0:01:54]}  gxf6 {[%clk 0:00:27]} 24. Qf3 {[%clk 0:01:49]}  d5 {[%clk 0:00:06]} 25. Qxf6 {[%clk 0:01:45]}  Rb6 {[%clk 0:00:06]} 26. Qg5+ {[%clk 0:01:34]}  Rg6 {[%clk 0:00:06]} 27. Qxd5 {[%clk 0:01:20]}  Bxh3 {[%clk 0:00:03]} 28. Ra8+ {[%clk 0:01:14]}  Kg7 {[%clk 0:00:03]} 29. Nf5+ {[%clk 0:00:56]}  Bxf5 {[%clk 0:00:03]} 30. Qxf5 {[%clk 0:00:57]}  Rh4 {[%clk 0:00:03]} 31. f4 {[%clk 0:00:37]}  Qc5+ {[%clk 0:00:02]} 32. Rf2 {[%clk 0:00:38]}  Qxf5 {[%clk 0:00:02]} 0-1


[Site "https://www.chess.com"]

[Event "Titled Tuesday Blitz March 28 Early 2023"]
[White "Rosenberg, Evan S"]
[Black "Baches Garcia, Guillermo"]
[WhiteFideId "2019299"]
[BlackFideId "2209764"]
[WhiteElo "2321"]
[BlackElo "2458"]
[Result "1-0"]
[Round "07"]
[TimeControl "180+2"]
[Date "2023.03.28"]
[WhiteClock "0:00:49"]
[BlackClock "0:00:02"]

1. d4 {[%clk 0:03:00]}  Nf6 {[%clk 0:02:59]} 2. Nf3 {[%clk 0:03:00]}  e6 {[%clk 0:03:00]} 3. g3 {[%clk 0:03:00]}  d5 {[%clk 0:02:59]} 4. Bg2 {[%clk 0:03:00]}  Be7 {[%clk 0:02:59]} 5. O-O {[%clk 0:03:01]}  O-O {[%clk 0:02:59]} 6. c4 {[%clk 0:03:02]}  dxc4 {[%clk 0:03:00]} 7. Qc2 {[%clk 0:03:02]}  a6 {[%clk 0:03:00]} 8. a4 {[%clk 0:03:02]}  Bd7 {[%clk 0:03:00]} 9. Qxc4 {[%clk 0:03:03]}  Bc6 {[%clk 0:03:00]} 10. Bg5 {[%clk 0:03:03]}  Nbd7 {[%clk 0:03:00]} 11. Nc3 {[%clk 0:03:00]}  h6 {[%clk 0:03:00]} 12. Bxf6 {[%clk 0:02:55]}  Nxf6 {[%clk 0:03:01]} 13. Ne5 {[%clk 0:02:48]}  Bxg2 {[%clk 0:02:54]} 14. Kxg2 {[%clk 0:02:49]}  a5 {[%clk 0:02:47]} 15. e4 {[%clk 0:02:48]}  c6 {[%clk 0:02:46]} 16. Rfd1 {[%clk 0:02:46]}  Bb4 {[%clk 0:02:40]} 17. f3 {[%clk 0:02:40]}  Qb6 {[%clk 0:02:37]} 18. Rd2 {[%clk 0:02:36]}  Rad8 {[%clk 0:02:28]} 19. Rad1 {[%clk 0:02:35]}  Nd7 {[%clk 0:02:26]} 20. f4 {[%clk 0:02:25]}  Nxe5 {[%clk 0:02:21]} 21. fxe5 {[%clk 0:02:19]}  Rd7 {[%clk 0:02:14]} 22. Rd3 {[%clk 0:02:06]}  Rfd8 {[%clk 0:02:09]} 23. Ne2 {[%clk 0:02:06]}  Bf8 {[%clk 0:01:55]} 24. b3 {[%clk 0:02:06]}  Qb4 {[%clk 0:01:53]} 25. Nf4 {[%clk 0:01:34]}  Qb6 {[%clk 0:01:01]} 26. d5 {[%clk 0:01:29]}  cxd5 {[%clk 0:00:57]} 27. exd5 {[%clk 0:01:29]}  exd5 {[%clk 0:00:49]} 28. Nxd5 {[%clk 0:01:22]}  Rxd5 {[%clk 0:00:12]} 29. Rxd5 {[%clk 0:01:21]}  Re8 {[%clk 0:00:12]} 30. Rd7 {[%clk 0:01:18]}  Qg6 {[%clk 0:00:11]} 31. Rxb7 {[%clk 0:01:12]}  Rxe5 {[%clk 0:00:11]} 32. Rdd7 {[%clk 0:01:12]}  Rf5 {[%clk 0:00:06]} 33. Rb8 {[%clk 0:00:58]}  Qf6 {[%clk 0:00:02]} 34. Qd4 {[%clk 0:00:49]} 1-0


[Site "https://www.chess.com"]

[Event "Titled Tuesday Blitz March 28 Early 2023"]
[White "Vafin, Ayrat"]
[Black "EdmundPlayer"]
[WhiteFideId "4146530"]
[WhiteElo "2317"]
[BlackElo "2235"]
[Result "1-0"]
[Round "07"]
[TimeControl "180+2"]
[Date "2023.03.28"]
[WhiteClock "0:01:10"]
[BlackClock "0:00:30"]

1. Nf3 {[%clk 0:03:00]}  d5 {[%clk 0:02:45]} 2. g3 {[%clk 0:02:54]}  g6 {[%clk 0:02:43]} 3. Bg2 {[%clk 0:02:54]}  Bg7 {[%clk 0:02:43]} 4. d4 {[%clk 0:02:53]}  Nf6 {[%clk 0:02:43]} 5. O-O {[%clk 0:02:53]}  O-O {[%clk 0:02:42]} 6. Nbd2 {[%clk 0:02:54]}  c5 {[%clk 0:02:42]} 7. dxc5 {[%clk 0:02:54]}  Nc6 {[%clk 0:02:41]} 8. Rb1 {[%clk 0:02:50]}  e5 {[%clk 0:02:41]} 9. b4 {[%clk 0:02:50]}  Qc7 {[%clk 0:02:38]} 10. e3 {[%clk 0:02:43]}  Re8 {[%clk 0:02:35]} 11. c4 {[%clk 0:02:40]}  d4 {[%clk 0:02:29]} 12. exd4 {[%clk 0:02:37]}  Nxd4 {[%clk 0:02:27]} 13. Nxd4 {[%clk 0:02:36]}  exd4 {[%clk 0:02:28]} 14. Bb2 {[%clk 0:02:19]}  Bf5 {[%clk 0:02:27]} 15. Rc1 {[%clk 0:02:19]}  Rad8 {[%clk 0:02:25]} 16. Re1 {[%clk 0:02:19]}  Rxe1+ {[%clk 0:02:16]} 17. Qxe1 {[%clk 0:02:20]}  Bd3 {[%clk 0:01:45]} 18. Nb3 {[%clk 0:02:03]}  Re8 {[%clk 0:01:35]} 19. Qd1 {[%clk 0:01:53]}  Be2 {[%clk 0:01:35]} 20. Qxd4 {[%clk 0:01:53]}  Nh5 {[%clk 0:01:34]} 21. Qd2 {[%clk 0:01:51]}  Bxb2 {[%clk 0:01:13]} 22. Qxb2 {[%clk 0:01:52]}  Ng7 {[%clk 0:01:07]} 23. Nd4 {[%clk 0:01:50]}  Bg4 {[%clk 0:01:06]} 24. Nb5 {[%clk 0:01:45]}  Qe7 {[%clk 0:01:02]} 25. h3 {[%clk 0:01:45]}  Be2 {[%clk 0:00:52]} 26. Nd6 {[%clk 0:01:43]}  Rd8 {[%clk 0:00:49]} 27. Re1 {[%clk 0:01:42]}  Ne6 {[%clk 0:00:38]} 28. Qxe2 {[%clk 0:01:38]}  b6 {[%clk 0:00:37]} 29. Nb7 {[%clk 0:01:17]}  Rd4 {[%clk 0:00:37]} 30. cxb6 {[%clk 0:01:12]}  axb6 {[%clk 0:00:36]} 31. Bd5 {[%clk 0:01:13]}  Kg7 {[%clk 0:00:31]} 32. Bxe6 {[%clk 0:01:11]}  Qxb7 {[%clk 0:00:30]} 33. Qe5+ {[%clk 0:01:10]} 1-0


[Site "https://www.chess.com"]

[Event "Titled Tuesday Blitz March 28 Early 2023"]
[White "Nunez V, Gustavo Eduardo"]
[Black "hsd2016"]
[WhiteFideId "4403690"]
[WhiteElo "2228"]
[BlackElo "1989"]
[Result "1-0"]
[Round "07"]
[TimeControl "180+2"]
[Date "2023.03.28"]
[WhiteClock "0:00:08"]
[BlackClock "0:00:05"]

1. e4 {[%clk 0:01:29]}  e6 {[%clk 0:02:59]} 2. d3 {[%clk 0:01:28]}  d5 {[%clk 0:02:58]} 3. Nd2 {[%clk 0:01:29]}  dxe4 {[%clk 0:02:59]} 4. dxe4 {[%clk 0:01:29]}  Nf6 {[%clk 0:03:00]} 5. Ngf3 {[%clk 0:01:29]}  Nc6 {[%clk 0:03:00]} 6. c3 {[%clk 0:01:29]}  Bc5 {[%clk 0:03:00]} 7. Bb5 {[%clk 0:01:28]}  Bd7 {[%clk 0:02:58]} 8. O-O {[%clk 0:01:27]}  a6 {[%clk 0:02:58]} 9. Ba4 {[%clk 0:01:27]}  O-O {[%clk 0:02:57]} 10. Qc2 {[%clk 0:01:27]}  Re8 {[%clk 0:02:55]} 11. Nb3 {[%clk 0:01:26]}  Bb6 {[%clk 0:02:55]} 12. Bg5 {[%clk 0:01:23]}  h6 {[%clk 0:02:55]} 13. Bh4 {[%clk 0:01:23]}  e5 {[%clk 0:02:55]} 14. Rad1 {[%clk 0:01:20]}  Qe7 {[%clk 0:02:55]} 15. Bg3 {[%clk 0:01:18]}  Bg4 {[%clk 0:02:44]} 16. Bxc6 {[%clk 0:01:14]}  Bxf3 {[%clk 0:02:44]} 17. Bxe8 {[%clk 0:01:12]}  Bxd1 {[%clk 0:02:44]} 18. Bxf7+ {[%clk 0:01:12]}  Kxf7 {[%clk 0:02:35]} 19. Rxd1 {[%clk 0:01:13]}  Rf8 {[%clk 0:02:30]} 20. c4 {[%clk 0:01:01]}  Nd7 {[%clk 0:02:26]} 21. Qd3 {[%clk 0:00:54]}  Nc5 {[%clk 0:02:09]} 22. Qd5+ {[%clk 0:00:51]}  Kg6 {[%clk 0:02:09]} 23. Nxc5 {[%clk 0:00:36]}  Bxc5 {[%clk 0:02:09]} 24. a3 {[%clk 0:00:28]}  Bd4 {[%clk 0:02:06]} 25. b4 {[%clk 0:00:27]}  Rd8 {[%clk 0:01:51]} 26. Rxd4 {[%clk 0:00:27]}  Rxd5 {[%clk 0:01:50]} 27. Rxd5 {[%clk 0:00:28]}  Qg5 {[%clk 0:01:48]} 28. h4 {[%clk 0:00:27]}  Qc1+ {[%clk 0:01:49]} 29. Kh2 {[%clk 0:00:27]}  Qxc4 {[%clk 0:01:49]} 30. Rxe5 {[%clk 0:00:25]}  Qc3 {[%clk 0:01:27]} 31. h5+ {[%clk 0:00:22]}  Kf7 {[%clk 0:01:25]} 32. Ra5 {[%clk 0:00:21]}  c6 {[%clk 0:01:21]} 33. f3 {[%clk 0:00:19]}  Ke6 {[%clk 0:01:16]} 34. Re5+ {[%clk 0:00:18]}  Kd7 {[%clk 0:01:05]} 35. Ra5 {[%clk 0:00:17]}  Qd3 {[%clk 0:01:01]} 36. Rf5 {[%clk 0:00:16]}  Ke6 {[%clk 0:00:58]} 37. Re5+ {[%clk 0:00:15]}  Kf7 {[%clk 0:00:57]} 38. Rf5+ {[%clk 0:00:15]}  Kg8 {[%clk 0:00:56]} 39. Ra5 {[%clk 0:00:15]}  b6 {[%clk 0:00:55]} 40. Re5 {[%clk 0:00:12]}  Qxa3 {[%clk 0:00:55]} 41. Re8+ {[%clk 0:00:12]}  Kf7 {[%clk 0:00:55]} 42. Rc8 {[%clk 0:00:12]}  Qc3 {[%clk 0:00:46]} 43. Rc7+ {[%clk 0:00:10]}  Ke6 {[%clk 0:00:46]} 44. f4 {[%clk 0:00:08]}  Qxb4 {[%clk 0:00:08]} 45. f5+ {[%clk 0:00:09]}  Kf6 {[%clk 0:00:09]} 46. Rxc6+ {[%clk 0:00:09]}  Kg5 {[%clk 0:00:09]} 47. Rg6+ {[%clk 0:00:07]}  Kxh5 {[%clk 0:00:09]} 48. Bf4 {[%clk 0:00:08]}  Qxe4 {[%clk 0:00:06]} 49. g4+ {[%clk 0:00:08]}  Kh4 {[%clk 0:00:05]} 50. Bg3# {[%clk 0:00:08]} 1-0


[Site "https://www.chess.com"]

[Event "Titled Tuesday Blitz March 28 Early 2023"]
[White "Horvath, Dominik"]
[Black "Silvestre, Christian"]
[WhiteFideId "1642561"]
[BlackFideId "30956269"]
[WhiteElo "2407"]
[BlackElo "2370"]
[Result "1-0"]
[Round "07"]
[TimeControl "180+2"]
[Date "2023.03.28"]
[WhiteClock "0:01:45"]
[BlackClock "0:00:52"]

1. b3 {[%clk 0:03:00]}  c5 {[%clk 0:02:33]} 2. Bb2 {[%clk 0:03:00]}  e6 {[%clk 0:02:33]} 3. d4 {[%clk 0:02:52]}  cxd4 {[%clk 0:02:32]} 4. Qxd4 {[%clk 0:02:53]}  Nc6 {[%clk 0:02:32]} 5. Qg4 {[%clk 0:02:53]}  Nf6 {[%clk 0:02:31]} 6. Qg3 {[%clk 0:02:52]}  d6 {[%clk 0:02:29]} 7. Nd2 {[%clk 0:02:51]}  e5 {[%clk 0:02:29]} 8. O-O-O {[%clk 0:02:47]}  Bf5 {[%clk 0:02:28]} 9. f3 {[%clk 0:02:32]}  Rc8 {[%clk 0:02:24]} 10. e4 {[%clk 0:02:25]}  Be6 {[%clk 0:02:22]} 11. Bc4 {[%clk 0:02:24]}  g6 {[%clk 0:02:14]} 12. Ne2 {[%clk 0:02:22]}  Bg7 {[%clk 0:02:12]} 13. Bxe6 {[%clk 0:02:19]}  fxe6 {[%clk 0:02:12]} 14. Nc4 {[%clk 0:02:19]}  d5 {[%clk 0:02:08]} 15. Nxe5 {[%clk 0:02:17]}  O-O {[%clk 0:02:06]} 16. Nxc6 {[%clk 0:02:17]}  Rxc6 {[%clk 0:02:06]} 17. Nd4 {[%clk 0:02:16]}  Ra6 {[%clk 0:02:04]} 18. Kb1 {[%clk 0:02:15]}  dxe4 {[%clk 0:02:00]} 19. Nxe6 {[%clk 0:02:12]}  Qa5 {[%clk 0:01:56]} 20. Nxg7 {[%clk 0:02:09]}  Qxa2+ {[%clk 0:01:52]} 21. Kc1 {[%clk 0:02:09]}  Kxg7 {[%clk 0:01:49]} 22. Qc7+ {[%clk 0:02:08]}  Rf7 {[%clk 0:01:47]} 23. Rd7 {[%clk 0:02:04]}  Qxb2+ {[%clk 0:01:37]} 24. Kxb2 {[%clk 0:02:04]}  Rxd7 {[%clk 0:01:37]} 25. Qe5 {[%clk 0:02:03]}  exf3 {[%clk 0:01:37]} 26. gxf3 {[%clk 0:02:02]}  Rc6 {[%clk 0:01:36]} 27. c4 {[%clk 0:02:00]}  a6 {[%clk 0:01:32]} 28. Re1 {[%clk 0:01:55]}  Rcd6 {[%clk 0:01:15]} 29. f4 {[%clk 0:01:51]}  Kf7 {[%clk 0:01:12]} 30. f5 {[%clk 0:01:51]}  gxf5 {[%clk 0:01:07]} 31. Qxf5 {[%clk 0:01:51]}  Re7 {[%clk 0:01:07]} 32. Rxe7+ {[%clk 0:01:49]}  Kxe7 {[%clk 0:01:07]} 33. h4 {[%clk 0:01:49]}  Rc6 {[%clk 0:01:06]} 34. h5 {[%clk 0:01:49]}  Kf7 {[%clk 0:01:05]} 35. h6 {[%clk 0:01:49]}  Ke7 {[%clk 0:01:05]} 36. Qg5 {[%clk 0:01:49]}  Ke6 {[%clk 0:01:04]} 37. Qg7 {[%clk 0:01:49]}  b5 {[%clk 0:00:57]} 38. Qb7 {[%clk 0:01:49]}  Kd6 {[%clk 0:00:54]} 39. cxb5 {[%clk 0:01:48]}  axb5 {[%clk 0:00:55]} 40. Qxb5 {[%clk 0:01:48]}  Nd5 {[%clk 0:00:55]} 41. Qb8+ {[%clk 0:01:46]}  Rc7 {[%clk 0:00:55]} 42. Qf8+ {[%clk 0:01:46]}  Kc6 {[%clk 0:00:55]} 43. b4 {[%clk 0:01:45]}  Rb7 {[%clk 0:00:55]} 44. Qc5+ {[%clk 0:01:44]}  Kd7 {[%clk 0:00:52]} 45. Qxd5+ {[%clk 0:01:45]} 1-0


[Site "https://www.chess.com"]

[Event "Titled Tuesday Blitz March 28 Early 2023"]
[White "Shkuran, Danylo"]
[Black "Sai Krishna G V"]
[WhiteFideId "14106248"]
[BlackFideId "5028280"]
[WhiteElo "2427"]
[BlackElo "2359"]
[Result "1/2-1/2"]
[Round "07"]
[TimeControl "180+2"]
[Date "2023.03.28"]
[WhiteClock "0:00:06"]
[BlackClock "0:00:15"]

1. d4 {[%clk 0:03:00]}  d5 {[%clk 0:02:59]} 2. Nc3 {[%clk 0:02:57]}  Nf6 {[%clk 0:02:57]} 3. Bg5 {[%clk 0:02:57]}  c5 {[%clk 0:02:55]} 4. Nf3 {[%clk 0:02:53]}  Nc6 {[%clk 0:02:54]} 5. Bxf6 {[%clk 0:02:52]}  gxf6 {[%clk 0:02:54]} 6. e3 {[%clk 0:02:48]}  e6 {[%clk 0:02:44]} 7. g3 {[%clk 0:02:44]}  Qb6 {[%clk 0:02:42]} 8. Rb1 {[%clk 0:02:42]}  Bd7 {[%clk 0:02:35]} 9. Bg2 {[%clk 0:02:41]}  Qa6 {[%clk 0:02:34]} 10. Bf1 {[%clk 0:02:16]}  Qa5 {[%clk 0:02:29]} 11. Bg2 {[%clk 0:02:15]}  b5 {[%clk 0:02:25]} 12. O-O {[%clk 0:02:11]}  b4 {[%clk 0:02:23]} 13. Ne2 {[%clk 0:02:10]}  Qxa2 {[%clk 0:02:21]} 14. Nf4 {[%clk 0:01:53]}  Qa6 {[%clk 0:02:04]} 15. dxc5 {[%clk 0:01:21]}  Bxc5 {[%clk 0:02:05]} 16. Nxd5 {[%clk 0:01:21]}  exd5 {[%clk 0:01:58]} 17. Qxd5 {[%clk 0:01:22]}  Qb6 {[%clk 0:01:56]} 18. Nd4 {[%clk 0:01:08]}  Bxd4 {[%clk 0:01:52]} 19. exd4 {[%clk 0:01:09]}  O-O-O {[%clk 0:01:48]} 20. Qxf7 {[%clk 0:01:04]}  Nxd4 {[%clk 0:01:46]} 21. c3 {[%clk 0:00:57]}  Ne2+ {[%clk 0:01:42]} 22. Kh1 {[%clk 0:00:57]}  Bc6 {[%clk 0:01:42]} 23. Qe6+ {[%clk 0:00:47]}  Kb7 {[%clk 0:01:42]} 24. Qxe2 {[%clk 0:00:45]}  Rhe8 {[%clk 0:01:42]} 25. Qg4 {[%clk 0:00:37]}  b3 {[%clk 0:01:38]} 26. Rbd1 {[%clk 0:00:23]}  Bxg2+ {[%clk 0:01:24]} 27. Kxg2 {[%clk 0:00:24]}  Qc6+ {[%clk 0:01:24]} 28. Kg1 {[%clk 0:00:22]}  a5 {[%clk 0:01:21]} 29. h4 {[%clk 0:00:13]}  a4 {[%clk 0:00:56]} 30. Rfe1 {[%clk 0:00:12]}  Rxe1+ {[%clk 0:00:41]} 31. Rxe1 {[%clk 0:00:13]}  Rd2 {[%clk 0:00:33]} 32. Qg7+ {[%clk 0:00:12]}  Ka6 {[%clk 0:00:30]} 33. Qxh7 {[%clk 0:00:05]}  Rxb2 {[%clk 0:00:30]} 34. Qd3+ {[%clk 0:00:06]}  Ka5 {[%clk 0:00:20]} 35. Re4 {[%clk 0:00:02]}  a3 {[%clk 0:00:18]} 36. Qd4 {[%clk 0:00:02]}  Rb1+ {[%clk 0:00:10]} 37. Kh2 {[%clk 0:00:01]}  Qxe4 {[%clk 0:00:10]} 38. Qxe4 {[%clk 0:00:02]}  a2 {[%clk 0:00:11]} 39. Qd5+ {[%clk 0:00:02]}  Ka6 {[%clk 0:00:11]} 40. Qc6+ {[%clk 0:00:03]}  Ka5 {[%clk 0:00:12]} 41. Qc5+ {[%clk 0:00:03]}  Ka6 {[%clk 0:00:12]} 42. Qc6+ {[%clk 0:00:04]}  Ka7 {[%clk 0:00:13]} 43. Qc7+ {[%clk 0:00:04]}  Ka8 {[%clk 0:00:13]} 44. Qc8+ {[%clk 0:00:05]}  Ka7 {[%clk 0:00:14]} 45. Qc7+ {[%clk 0:00:05]}  Ka6 {[%clk 0:00:15]} 46. Qc6+ {[%clk 0:00:06]} 1/2-1/2


[Site "https://www.chess.com"]

[Event "Titled Tuesday Blitz March 28 Early 2023"]
[White "Sielecki, Christof"]
[Black "Fernandez Siles, Luis"]
[WhiteFideId "4620437"]
[BlackFideId "2209420"]
[WhiteElo "2443"]
[BlackElo "2186"]
[Result "1-0"]
[Round "07"]
[TimeControl "180+2"]
[Date "2023.03.28"]
[WhiteClock "0:00:44"]
[BlackClock "0:00:01"]

1. e4 {[%clk 0:03:00]}  c5 {[%clk 0:02:58]} 2. Nf3 {[%clk 0:03:00]}  Nc6 {[%clk 0:02:58]} 3. Bb5 {[%clk 0:02:59]}  g6 {[%clk 0:02:58]} 4. O-O {[%clk 0:02:58]}  Bg7 {[%clk 0:02:58]} 5. Re1 {[%clk 0:02:58]}  Nf6 {[%clk 0:02:57]} 6. c3 {[%clk 0:02:56]}  O-O {[%clk 0:02:53]} 7. d4 {[%clk 0:02:56]}  d5 {[%clk 0:02:53]} 8. e5 {[%clk 0:02:55]}  Ne4 {[%clk 0:02:53]} 9. Be3 {[%clk 0:02:55]}  Qb6 {[%clk 0:02:40]} 10. Bxc6 {[%clk 0:02:45]}  bxc6 {[%clk 0:02:39]} 11. Qc1 {[%clk 0:02:43]}  c4 {[%clk 0:02:37]} 12. Nfd2 {[%clk 0:02:38]}  Nxd2 {[%clk 0:02:30]} 13. Nxd2 {[%clk 0:02:39]}  Bf5 {[%clk 0:02:30]} 14. b3 {[%clk 0:02:33]}  Bd3 {[%clk 0:02:30]} 15. Qa3 {[%clk 0:02:18]}  e6 {[%clk 0:02:28]} 16. bxc4 {[%clk 0:02:04]}  dxc4 {[%clk 0:02:27]} 17. f3 {[%clk 0:01:34]}  Rfd8 {[%clk 0:02:13]} 18. Ne4 {[%clk 0:01:31]}  Bxe4 {[%clk 0:02:06]} 19. fxe4 {[%clk 0:01:30]}  Bf8 {[%clk 0:01:38]} 20. Qa4 {[%clk 0:01:20]}  Qb5 {[%clk 0:01:36]} 21. Qxb5 {[%clk 0:01:15]}  cxb5 {[%clk 0:01:36]} 22. Reb1 {[%clk 0:01:16]}  a6 {[%clk 0:01:35]} 23. a4 {[%clk 0:01:16]}  Rdb8 {[%clk 0:01:14]} 24. axb5 {[%clk 0:01:12]}  axb5 {[%clk 0:01:14]} 25. Rxa8 {[%clk 0:01:09]}  Rxa8 {[%clk 0:01:15]} 26. Rxb5 {[%clk 0:01:10]}  Ra3 {[%clk 0:01:13]} 27. Rb8 {[%clk 0:01:06]}  Kg7 {[%clk 0:00:30]} 28. Bg5 {[%clk 0:01:04]}  Ra1+ {[%clk 0:00:12]} 29. Kf2 {[%clk 0:01:03]}  Ba3 {[%clk 0:00:12]} 30. Ra8 {[%clk 0:00:49]}  Bb2 {[%clk 0:00:05]} 31. Rxa1 {[%clk 0:00:49]}  Bxa1 {[%clk 0:00:05]} 32. Bd2 {[%clk 0:00:48]}  Kf8 {[%clk 0:00:02]} 33. Ke3 {[%clk 0:00:43]}  Ke7 {[%clk 0:00:01]} 34. d5 {[%clk 0:00:44]}  Kd7 {[%clk 0:00:01]} 35. Kd4 {[%clk 0:00:44]} 1-0


[Site "https://www.chess.com"]